bitfinex/quotes_BTCUSD_20240729
["timestamp","ask_amount","ask_price","bid_price","bid_amount"]
[1722232949951,1.44966953,69928.0,69927.0,0.31042764]
[1722232950191,1.42721415,69928.0,69927.0,0.31042764]
[1722232950404,1.44021415,69928.0,69927.0,0.31142764]
[1722232950855,1.49021415,69928.0,69927.0,0.31142764]
[1722232951753,1.44021415,69928.0,69927.0,0.31142764]
[1722232951995,1.49020655,69928.0,69927.0,0.31142764]
[1722232952324,1.70501258,69928.0,69927.0,0.31042764]
[1722232952531,1.65501258,69928.0,69927.0,0.31042764]
[1722232952735,1.66901258,69928.0,69927.0,0.31042764]
[1722232952931,1.56370828,69928.0,69927.0,0.31042764]
[1722232953344,2.04315183,69928.0,69927.0,0.2609896]
[1722232953538,2.04315183,69928.0,69927.0,0.00797361]
[1722232953539,2.30105783,69928.0,69927.0,0.00797361]
[1722232953724,2.2835112,69928.0,69927.0,0.00797361]
[1722232953950,1.84774096,69928.0,69927.0,0.00797361]
[1722232954144,1.59084096,69928.0,69927.0,0.00797361]
[1722232954612,1.81964696,69928.0,69927.0,0.00797361]
[1722232954948,1.59084096,69928.0,69927.0,0.00797361]
[1722232955601,1.59008931,69928.0,69927.0,0.00797361]
[1722232956422,1.42884576,69928.0,69927.0,0.00797361]
[1722232957423,1.45130209,69928.0,69927.0,0.00797361]
[1722232957627,1.42884576,69928.0,69927.0,0.00797361]
[1722232958235,1.57194515,69928.0,69927.0,0.00797361]
[1722232958556,1.47194515,69928.0,69927.0,0.00797361]
[1722232958817,1.41205995,69928.0,69927.0,0.00797361]
[1722232959036,1.42901294,69928.0,69927.0,0.00797361]
[1722232959390,1.42902334,69928.0,69927.0,0.00797361]
[1722232960610,1.37902334,69928.0,69927.0,0.00797361]
[1722232960805,1.42902334,69928.0,69927.0,0.00797361]
[1722232961040,1.59042161,69928.0,69927.0,0.00797361]
[1722232961552,1.45147908,69928.0,69927.0,0.00797361]
[1722232963019,1.42902334,69928.0,69927.0,0.00889761]
[1722232963217,1.32902334,69928.0,69927.0,0.00889761]
[1722232963418,1.42902334,69928.0,69927.0,0.00889761]
[1722232965319,1.43007569,69928.0,69927.0,0.00889761]
[1722232965515,0.48452769,69928.0,69927.0,0.07069761]
[1722232965700,0.48452769,69928.0,69927.0,0.14699761]
[1722232965701,0.04585574,69928.0,69927.0,0.14699761]
[1722232965875,0.04585574,69928.0,69927.0,0.16169737]
[1722232966283,0.37506474,69928.0,69927.0,0.16169737]
[1722232966528,0.02329212,69928.0,69927.0,0.14599761]
[1722232966727,0.01484,69928.0,69927.0,0.14599761]
[1722232967072,0.00084,69928.0,69927.0,0.14599761]
[1722232967497,0.14573994,69928.0,69927.0,0.16159737]
[1722232967882,0.14573994,69928.0,69927.0,0.14899761]
[1722232967883,0.00084,69928.0,69927.0,0.14899761]
[1722232969220,0.00084,69928.0,69927.0,0.1489976]
[1722232970030,0.02329097,69928.0,69927.0,0.1489976]
[1722232970491,0.15195537,69928.0,69927.0,0.1489976]
[1722232971314,0.02329097,69928.0,69927.0,0.1489976]
[1722232971514,0.02329097,69928.0,69927.0,0.17533856]
[1722232971515,0.1519515,69928.0,69927.0,0.17533856]
[1722232971772,0.02329097,69928.0,69927.0,0.17533856]
[1722232972006,0.02329097,69928.0,69927.0,0.1489976]
[1722232972173,0.02329097,69928.0,69927.0,0.1469976]
[1722232972434,0.04429097,69928.0,69927.0,0.1539976]
[1722232974479,0.04429097,69928.0,69927.0,0.1529976]
[1722232975043,0.04329097,69928.0,69927.0,0.1459976]
[1722232975526,0.04429097,69928.0,69927.0,0.1599976]
[1722232975732,0.02172146,69928.0,69927.0,0.1599976]
[1722232976994,0.02272146,69928.0,69927.0,0.16192941]
[1722232977205,0.02272146,69928.0,69927.0,0.30377547]
[1722232977415,0.02158189,69928.0,69927.0,0.81139547]
[1722232977614,0.06424742,69934.0,69927.0,0.81139547]
[1722232977615,0.04283042,69935.0,69934.0,0.48868]
[1722232977764,0.06421471,69941.0,69940.0,0.114383]
[1722232977976,0.04280913,69946.0,69945.0,0.0824]
[1722232978177,0.06421471,69949.0,69946.0,0.311147]
[1722232978178,0.04280913,69947.0,69946.0,0.311147]
[1722232978379,0.06420582,69951.0,69950.0,0.1455]
[1722232978555,0.04277249,69951.0,69950.0,0.67481943]
[1722232978756,0.04277249,69951.0,69950.0,0.73768743]
[1722232978990,0.06521541,69951.0,69950.0,0.67381943]
[1722232979222,0.06521541,69951.0,69950.0,0.67281943]
[1722232979223,0.06420582,69951.0,69950.0,0.67281943]
[1722232979398,0.07154355,69957.0,69950.0,0.67281943]
[1722232979399,0.06420582,69952.0,69950.0,0.67281943]
[1722232979600,0.001,69951.0,69950.0,0.68381943]
[1722232980059,0.04275113,69952.0,69950.0,0.60971943]
[1722232980260,0.04275113,69952.0,69951.0,0.0619]
[1722232980476,0.04275113,69954.0,69953.0,0.114362]
[1722232980699,0.04275113,69957.0,69953.0,0.61301]
[1722232980904,0.04275113,69955.0,69954.0,0.11436]
[1722232981121,0.04275113,69955.0,69954.0,0.613]
[1722232981344,0.04275113,69955.0,69954.0,0.956081]
[1722232981549,0.04275113,69956.0,69955.0,0.114359]
[1722232981746,0.04275113,69956.0,69955.0,0.805059]
[1722232981918,0.11429468,69958.0,69957.0,0.0777]
[1722232982123,0.11429468,69958.0,69957.0,0.69069]
[1722232982552,0.09398419,69958.0,69957.0,0.69069]
[1722232983041,0.09398419,69958.0,69957.0,0.70169]
[1722232983243,0.09398419,69958.0,69957.0,0.761959]
[1722232983454,0.09398419,69958.0,69957.0,0.937514]
[1722232983624,0.07154355,69958.0,69957.0,0.823159]
[1722232984097,0.0712026,69958.0,69957.0,0.822159]
[1722232984252,0.0712026,69958.0,69957.0,0.865245]
[1722232984458,0.0712026,69958.0,69957.0,0.75089]
[1722232984842,0.0712026,69958.0,69957.0,0.865245]
[1722232985046,0.0712026,69958.0,69957.0,1.093956]
[1722232985336,0.0712026,69958.0,69957.0,0.865245]
[1722232985744,0.0712026,69958.0,69957.0,1.107956]
[1722232985941,0.0712026,69958.0,69957.0,0.865245]
[1722232986171,0.0712026,69958.0,69957.0,0.75089]
[1722232986308,0.0722026,69958.0,69957.0,0.77489]
[1722232986523,0.0722026,69958.0,69957.0,0.889245]
[1722232986732,0.0712026,69958.0,69957.0,0.879245]
[1722232987147,0.00806,69960.0,69959.0,0.260952]
[1722232987376,0.00806,69960.0,69959.0,0.873932]
[1722232988099,0.00806,69960.0,69959.0,0.76058]
[1722232988771,0.00906,69960.0,69959.0,0.77258]
[1722232989336,0.00806,69960.0,69959.0,0.76058]
[1722232989529,0.00906,69960.0,69959.0,0.77458]
[1722232990384,0.580815,69960.0,69959.0,0.70808]
[1722232990624,0.352113,69960.0,69959.0,0.70808]
[1722232991240,0.580815,69960.0,69959.0,0.70808]
[1722232991444,0.571755,69960.0,69959.0,0.70808]
[1722232991646,0.59419622,69960.0,69959.0,0.62698]
[1722232991773,0.61719622,69960.0,69959.0,0.62698]
[1722232992176,0.594755,69960.0,69959.0,0.62698]
[1722232992600,0.571755,69960.0,69959.0,0.64098]
[1722232993417,0.800457,69960.0,69959.0,0.64098]
[1722232993620,0.823457,69960.0,69959.0,0.64098]
[1722232993829,0.823457,69960.0,69959.0,0.62698]
[1722232993995,0.889157,69960.0,69959.0,0.62698]
[1722232994198,0.890157,69960.0,69959.0,0.63798]
[1722232994545,0.890157,69960.0,69959.0,0.62398]
[1722232994714,0.889157,69960.0,69959.0,0.61298]
[1722232995036,1.37507352,69960.0,69959.0,0.61298]
[1722232995178,1.67558839,69960.0,69959.0,0.61298]
[1722232995392,1.73946518,69960.0,69959.0,0.61398]
[1722232995595,1.54636579,69960.0,69959.0,0.61398]
[1722232995800,0.1144,69930.0,69929.0,0.0804]
[1722232996025,0.3432,69930.0,69929.0,0.0804]
[1722232996225,0.572,69930.0,69927.0,0.000924]
[1722232996484,0.572015,69928.0,69927.0,0.000924]
[1722232996663,0.572015,69928.0,69927.0,0.286934]
[1722232996886,0.823821,69928.0,69927.0,0.286934]
[1722232997813,0.595015,69928.0,69927.0,0.286934]
[1722232998025,0.572015,69928.0,69927.0,0.287934]
[1722232998260,0.114403,69928.0,69927.0,0.3167274]
[1722232998492,0.228797,69931.0,69927.0,0.3167274]
[1722232998738,0.29949935,69943.0,69927.0,0.3167274]
[1722232998739,0.114397,69932.0,69927.0,0.3167274]
[1722232998940,0.07154355,69940.0,69927.0,0.3167274]
[1722232999248,0.343209,69928.0,69927.0,0.287934]
[1722232999450,0.344209,69928.0,69927.0,0.287934]
[1722232999679,0.573015,69928.0,69927.0,0.287934]
[1722232999962,0.82327289,69928.0,69927.0,0.287934]
[1722233000137,0.595015,69928.0,69927.0,0.288934]
[1722233000348,0.595015,69928.0,69927.0,0.287934]
[1722233000755,0.595015,69928.0,69927.0,0.286934]
[1722233000953,0.596015,69928.0,69927.0,0.292934]
[1722233001378,0.824821,69928.0,69927.0,0.294934]
[1722233001737,1.050851,69928.0,69927.0,0.294934]
[1722233002086,1.300851,69928.0,69927.0,0.294934]
[1722233002383,1.150851,69928.0,69927.0,0.294934]
[1722233003388,1.529657,69928.0,69927.0,0.294934]
[1722233003586,1.32230522,69928.0,69927.0,0.288934]
[1722233003776,1.199851,69928.0,69927.0,0.288934]
[1722233003980,1.299851,69928.0,69927.0,0.288934]
[1722233004105,1.44295039,69928.0,69927.0,0.288934]
[1722233004307,1.67175639,69928.0,69927.0,0.286934]
[1722233004708,1.7406781,69928.0,69927.0,0.286934]
[1722233005113,1.540657,69928.0,69927.0,0.286934]
[1722233005322,1.60964912,69928.0,69927.0,0.286934]
[1722233005576,1.545657,69928.0,69927.0,0.286934]
[1722233005715,1.216851,69928.0,69927.0,0.286934]
[1722233005914,1.316851,69928.0,69927.0,0.286934]
[1722233006119,1.45569046,69928.0,69927.0,0.286934]
[1722233006319,1.68449646,69928.0,69927.0,0.286934]
[1722233006514,1.216851,69928.0,69927.0,0.286934]
[1722233006780,1.37350337,69928.0,69927.0,0.286934]
[1722233007072,1.29595839,69928.0,69927.0,0.286934]
[1722233007488,1.2735032,69928.0,69927.0,0.286934]
[1722233007896,1.23084232,69928.0,69927.0,0.286934]
[1722233008301,1.166851,69928.0,69927.0,0.286934]
[1722233008427,1.23083634,69928.0,69927.0,0.286934]
[1722233008883,0.712015,69928.0,69927.0,0.286934]
[1722233009782,0.75467574,69928.0,69927.0,0.286934]
[1722233009983,0.75467476,69928.0,69927.0,0.286934]
[1722233010259,0.712015,69928.0,69927.0,0.286934]
[1722233010613,0.73446925,69928.0,69927.0,0.286934]
[1722233010839,0.96327525,69928.0,69927.0,0.286934]
[1722233011049,0.73446925,69928.0,69927.0,0.286934]
[1722233012235,0.77713323,69928.0,69927.0,0.286934]
[1722233012910,0.75467898,69928.0,69927.0,0.286934]
[1722233013735,0.712015,69928.0,69927.0,0.286934]
[1722233013937,0.705015,69928.0,69927.0,0.286934]
[1722233014350,0.380209,69928.0,69927.0,0.3305074]
[1722233014547,0.370209,69928.0,69927.0,0.286934]
[1722233014747,0.368209,69928.0,69927.0,0.286934]
[1722233014929,0.368209,69928.0,69927.0,0.287934]
[1722233015124,0.595015,69928.0,69927.0,0.287934]
[1722233015350,0.366209,69928.0,69927.0,0.287934]
[1722233015566,0.367209,69928.0,69927.0,0.286934]
[1722233015769,0.366209,69928.0,69927.0,0.286934]
[1722233016379,0.366209,69928.0,69927.0,0.289934]
[1722233017578,0.366209,69928.0,69927.0,0.286934]
[1722233017991,0.367209,69928.0,69927.0,0.293934]
[1722233018525,0.367209,69928.0,69927.0,0.3382074]
[1722233018731,0.367209,69928.0,69927.0,0.293934]
[1722233020517,0.115403,69928.0,69927.0,0.293934]
[1722233020721,0.001,69928.0,69927.0,0.293934]
[1722233022020,0.001,69928.0,69927.0,0.408339]
[1722233022229,0.114389,69937.0,69928.0,0.114402]
[1722233022431,0.54124355,69940.0,69927.0,0.3655298]
[1722233022432,0.11439,69936.0,69927.0,0.3655298]
[1722233022628,0.77001055,69940.0,69929.0,0.286]
[1722233022833,0.114389,69937.0,69929.0,0.286]
[1722233023396,0.228771,69939.0,69929.0,0.286]
[1722233023397,0.228776,69938.0,69929.0,0.286]
[1722233023657,0.228777,69937.0,69930.0,0.01659672]
[1722233023830,0.228777,69937.0,69931.0,0.286]
[1722233024035,0.11439,69936.0,69931.0,0.286]
[1722233024412,0.114392,69935.0,69931.0,0.286]
[1722233024835,0.114392,69935.0,69931.0,0.285]
[1722233024836,0.07154355,69933.0,69931.0,0.285]
[1722233025041,0.07154355,69933.0,69931.0,0.33577257]
[1722233026335,0.07154355,69933.0,69931.0,0.33677257]
[1722233026737,0.07154355,69933.0,69931.0,0.286]
[1722233027002,0.644982,69932.0,69931.0,0.286]
[1722233027149,0.873775,69932.0,69931.0,0.286]
[1722233027356,0.823775,69932.0,69931.0,0.286]
[1722233027547,0.90909951,69932.0,69931.0,0.286]
[1722233028433,0.823775,69932.0,69931.0,0.286]
[1722233028769,0.95912439,69932.0,69931.0,0.285]
[1722233028974,0.83849684,69932.0,69931.0,0.285]
[1722233029171,0.83849684,69932.0,69931.0,0.29121168]
[1722233029172,1.09515248,69932.0,69931.0,0.29121168]
[1722233029395,1.04515248,69932.0,69931.0,0.28721168]
[1722233029754,1.04515248,69932.0,69931.0,0.28621168]
[1722233030126,1.04815248,69932.0,69931.0,0.28621168]
[1722233030554,0.94922787,69932.0,69931.0,0.28621168]
[1722233030737,0.96390426,69932.0,69931.0,0.28621168]
[1722233030900,0.94145139,69932.0,69931.0,0.28621168]
[1722233031325,0.94345139,69932.0,69931.0,0.28621168]
[1722233032020,0.94045139,69932.0,69931.0,0.28621168]
[1722233032844,0.94445139,69932.0,69931.0,0.28713568]
[1722233033262,0.929775,69932.0,69931.0,0.28713568]
[1722233033587,1.03661492,69932.0,69931.0,0.28713568]
[1722233033801,0.929775,69932.0,69931.0,0.28713568]
[1722233034009,1.03661492,69932.0,69931.0,0.28713568]
[1722233034206,0.95222672,69932.0,69931.0,0.28713568]
[1722233035655,0.96803367,69932.0,69931.0,0.28713568]
[1722233036600,0.94558234,69932.0,69931.0,0.28713568]
[1722233036973,0.9454609,69932.0,69931.0,0.28713568]
[1722233039453,1.08990601,69932.0,69931.0,0.28713568]
[1722233039858,1.11235828,69932.0,69931.0,0.28713568]
[1722233040060,1.08990601,69932.0,69931.0,0.28713568]
[1722233040261,1.09026527,69932.0,69931.0,0.28713568]
[1722233040467,0.94557161,69932.0,69931.0,0.28713568]
[1722233042563,0.94585549,69932.0,69931.0,0.28713568]
[1722233042974,0.929775,69932.0,69931.0,0.28713568]
[1722233043245,0.94585549,69932.0,69931.0,0.28713568]
[1722233043444,0.96830785,69932.0,69931.0,0.28713568]
[1722233044639,1.46433832,69932.0,69931.0,0.28713568]
[1722233044842,1.49703085,69932.0,69931.0,0.28713568]
[1722233045370,1.47457843,69932.0,69931.0,0.28713568]
[1722233045731,1.55042423,69932.0,69931.0,0.28713568]
[1722233047095,1.40042423,69932.0,69931.0,0.28713568]
[1722233047297,1.40042423,69932.0,69931.0,0.28713569]
[1722233047501,1.50042423,69932.0,69931.0,0.28713569]
[1722233048106,1.40042423,69932.0,69931.0,0.28713569]
[1722233048306,1.50042423,69932.0,69931.0,0.28713569]
[1722233048516,1.62791584,69932.0,69931.0,0.28713569]
[1722233048947,1.62856305,69932.0,69931.0,0.28713569]
[1722233050406,1.50107144,69932.0,69931.0,0.28713569]
[1722233050851,1.55107144,69932.0,69931.0,0.28713569]
[1722233051003,1.45107144,69932.0,69931.0,0.28713569]
[1722233051208,1.50107144,69932.0,69931.0,0.28713569]
[1722233051861,1.42467144,69932.0,69931.0,0.28713569]
[1722233052036,1.3971248,69932.0,69931.0,0.28713569]
[1722233052392,1.44729844,69932.0,69931.0,0.28713569]
[1722233052690,1.43095136,69932.0,69931.0,0.28713569]
[1722233052896,1.39741508,69932.0,69931.0,0.28713569]
[1722233053031,1.33351508,69932.0,69931.0,0.28713569]
[1722233053431,1.31106172,69932.0,69931.0,0.28713569]
[1722233054178,1.36106172,69932.0,69931.0,0.27713569]
[1722233054547,1.36102111,69932.0,69931.0,0.27713569]
[1722233055160,1.31102111,69932.0,69931.0,0.27713569]
[1722233055363,1.26102255,69932.0,69931.0,0.27713569]
[1722233055776,1.31102255,69932.0,69931.0,0.27713569]
[1722233056201,1.22499255,69932.0,69931.0,0.27713569]
[1722233056437,1.24744575,69932.0,69931.0,0.27713569]
[1722233057007,1.27499255,69932.0,69931.0,0.27713569]
[1722233057222,1.32499255,69932.0,69931.0,0.27713569]
[1722233057617,1.46323373,69932.0,69931.0,0.27713569]
[1722233057944,1.32499255,69932.0,69931.0,0.27713569]
[1722233058154,1.41102255,69932.0,69931.0,0.27713569]
[1722233058350,1.36102255,69932.0,69931.0,0.27713569]
[1722233058600,1.36133088,69932.0,69931.0,0.27713569]
[1722233058774,1.41133088,69932.0,69931.0,0.27713569]
[1722233058970,1.36133088,69932.0,69931.0,0.27713569]
[1722233059201,1.40535287,69932.0,69931.0,0.27713569]
[1722233059421,1.45535287,69932.0,69931.0,0.27713569]
[1722233059582,1.36133088,69932.0,69931.0,0.27713569]
[1722233060168,1.38378458,69932.0,69931.0,0.27713569]
[1722233061296,1.43378458,69932.0,69931.0,0.27713569]
[1722233061716,1.4170517,69932.0,69931.0,0.27713569]
[1722233061859,1.43402382,69932.0,69931.0,0.27713569]
[1722233062237,1.47922712,69932.0,69931.0,0.27713569]
[1722233062599,1.33402382,69932.0,69931.0,0.27713569]
[1722233063178,1.28402382,69932.0,69931.0,0.27713569]
[1722233063385,1.03223082,69932.0,69931.0,0.27713569]
[1722233065086,1.05523082,69932.0,69931.0,0.27713569]
[1722233067116,1.05607082,69932.0,69931.0,0.27713569]
[1722233068040,1.0390987,69932.0,69931.0,0.27713568]
[1722233068272,1.0509921,69932.0,69931.0,0.27713568]
[1722233069284,0.9425084,69932.0,69931.0,0.27713568]
[1722233071267,0.1187334,69932.0,69931.0,0.46458165]
[1722233071447,0.10684,69932.0,69931.0,0.46458165]
[1722233071656,0.26618516,69932.0,69931.0,0.42193568]
[1722233071861,0.678822,69932.0,69931.0,0.42193568]
[1722233072220,0.676822,69932.0,69931.0,0.42093568]
[1722233072706,0.69527351,69932.0,69931.0,0.42493568]
[1722233073076,0.71827351,69932.0,69931.0,0.42493568]
[1722233073312,0.15029151,69932.0,69931.0,0.46752165]
[1722233073494,0.05029151,69932.0,69931.0,0.46752165]
[1722233073704,0.04629151,69932.0,69931.0,0.46752165]
[1722233073923,0.02329151,69932.0,69931.0,0.46752165]
[1722233074126,0.02329151,69932.0,69931.0,0.46952165]
[1722233074533,0.15208763,69932.0,69931.0,0.42693568]
[1722233074827,0.15208763,69932.0,69931.0,0.42293568]
[1722233074828,0.02329151,69932.0,69931.0,0.42293568]
[1722233075086,0.02329151,69932.0,69931.0,0.42593568]
[1722233075292,0.02329151,69932.0,69931.0,0.46862165]
[1722233075500,0.02329151,69932.0,69931.0,0.46362165]
[1722233075655,0.1520274,69932.0,69931.0,0.42093568]
[1722233075811,0.02429151,69932.0,69931.0,0.43493568]
[1722233076039,0.1530274,69932.0,69931.0,0.43493568]
[1722233076244,0.1540274,69932.0,69931.0,0.48152165]
[1722233076448,0.02529151,69932.0,69931.0,0.43793568]
[1722233076805,0.02329151,69932.0,69931.0,0.42093568]
[1722233077004,0.1520274,69932.0,69931.0,0.42093568]
[1722233077385,0.15300563,69932.0,69931.0,0.42393568]
[1722233077966,0.02429151,69932.0,69931.0,0.61514095]
[1722233078341,0.02529151,69932.0,69931.0,0.55233368]
[1722233078624,0.02429151,69932.0,69931.0,0.53833368]
[1722233078827,0.02429151,69932.0,69931.0,0.42393568]
[1722233079036,0.02529151,69932.0,69931.0,0.43793568]
[1722233079242,0.02529151,69932.0,69931.0,0.55233368]
[1722233079413,0.02529151,69932.0,69931.0,0.43793568]
[1722233079762,0.13968751,69932.0,69931.0,0.43793568]
[1722233079971,0.02529151,69932.0,69931.0,0.43793568]
[1722233080175,0.13968751,69932.0,69931.0,0.43793568]
[1722233080617,0.343189,69932.0,69931.0,0.43793568]
[1722233080829,0.114396,69932.0,69931.0,0.43793568]
[1722233081342,0.228787,69934.0,69931.0,0.43793568]
[1722233081546,0.114396,69932.0,69931.0,0.48182165]
[1722233081888,0.023,69933.0,69931.0,0.48182165]
[1722233082089,0.114395,69933.0,69931.0,0.48182165]
[1722233082293,0.114392,69935.0,69932.0,0.0796]
[1722233082499,0.114392,69935.0,69933.0,0.29699]
[1722233082500,0.023,69934.0,69933.0,0.29699]
[1722233082766,0.023,69934.0,69933.0,0.29720169]
[1722233082931,0.001,69934.0,69933.0,0.29720169]
[1722233083142,0.001,69934.0,69933.0,0.37790169]
[1722233083517,0.001,69934.0,69933.0,0.37690169]
[1722233083697,0.114386,69939.0,69935.0,0.0626]
[1722233083900,0.114387,69938.0,69936.0,0.0807]
[1722233084103,0.114387,69938.0,69937.0,0.34113985]
[1722233084316,0.3573651,69944.0,69937.0,0.29818169]
[1722233084542,0.47341524,69952.0,69937.0,0.29818169]
[1722233084543,0.1286091,69945.0,69941.0,0.114381]
[1722233084741,0.1286091,69950.0,69943.0,0.0805]
[1722233084980,0.22873,69952.0,69944.0,0.29894]
[1722233084981,0.114374,69946.0,69944.0,0.29894]
[1722233085184,0.114374,69946.0,69944.0,0.29915169]
[1722233085383,0.114369,69949.0,69944.0,0.29915169]
[1722233085617,0.1286091,69953.0,69944.0,0.29915169]
[1722233085820,0.1286091,69953.0,69946.0,0.0813]
[1722233085981,0.228709,69958.0,69947.0,0.35963]
[1722233085982,0.114365,69951.0,69947.0,0.35963]
[1722233086202,0.023,69950.0,69947.0,0.35984169]
[1722233086399,0.228725,69953.0,69948.0,0.04695292]
[1722233086767,0.41464455,69950.0,69949.0,0.29892]
[1722233086960,0.41464455,69950.0,69949.0,0.29913169]
[1722233087368,0.18591055,69950.0,69949.0,0.29913169]
[1722233087782,0.18591055,69950.0,69949.0,0.29813169]
[1722233087995,0.07154355,69950.0,69949.0,0.29813169]
[1722233088212,0.09398872,69950.0,69949.0,0.33401486]
[1722233088415,0.17857634,69950.0,69949.0,0.33401486]
[1722233088557,0.07354355,69950.0,69949.0,0.33401486]
[1722233088996,0.18791055,69950.0,69949.0,0.37973169]
[1722233089227,0.66837855,69950.0,69949.0,0.37973169]
[1722233089626,0.66837855,69950.0,69949.0,0.37973168]
[1722233090053,0.66637855,69950.0,69949.0,0.29813168]
[1722233090281,0.89511255,69950.0,69949.0,0.29813168]
[1722233090464,0.99511255,69950.0,69949.0,0.29813168]
[1722233090914,1.08114255,69950.0,69949.0,0.29813168]
[1722233091276,0.76637855,69950.0,69949.0,0.29813168]
[1722233091682,0.76637855,69950.0,69949.0,0.30013168]
[1722233091683,0.89475989,69950.0,69949.0,0.30013168]
[1722233091923,0.89475989,69950.0,69949.0,0.30313168]
[1722233092099,0.89475989,69950.0,69949.0,0.30113168]
[1722233092298,0.89476051,69950.0,69949.0,0.29813168]
[1722233092524,0.76837855,69950.0,69949.0,0.29813168]
[1722233092869,0.89675839,69950.0,69949.0,0.29813168]
[1722233093067,0.56009045,69950.0,69949.0,0.29813168]
[1722233093260,0.78882445,69950.0,69949.0,0.37773168]
[1722233093476,0.76637855,69950.0,69949.0,0.37773168]
[1722233094423,0.228719,69955.0,69949.0,0.47810485]
[1722233094726,0.10695685,69951.0,69949.0,0.47810485]
[1722233095316,0.10695685,69952.0,69949.0,0.47810485]
[1722233095448,0.08556038,69950.0,69949.0,0.44033168]
[1722233095643,0.08556066,69950.0,69949.0,0.44033168]
[1722233096267,0.10695082,69950.0,69949.0,0.44033168]
[1722233096751,0.10695082,69950.0,69949.0,0.44233168]
[1722233096958,0.22131782,69950.0,69949.0,0.44033168]
[1722233097354,0.114367,69950.0,69949.0,0.45433168]
[1722233097755,0.07154355,69951.0,69949.0,0.45433168]
[1722233097756,0.18590955,69951.0,69949.0,0.45433168]
[1722233097978,0.343101,69950.0,69949.0,0.45433168]
[1722233098181,0.343101,69950.0,69949.0,0.31313168]
[1722233098182,0.594835,69950.0,69949.0,0.31313168]
[1722233098619,0.823569,69950.0,69949.0,0.29913168]
[1722233098827,0.823569,69950.0,69949.0,0.29813167]
[1722233099033,0.823569,69950.0,69949.0,0.30013167]
[1722233099245,1.40619311,69950.0,69949.0,0.30105567]
[1722233099447,1.40619497,69950.0,69949.0,0.30105567]
[1722233099653,1.40619497,69950.0,69949.0,0.29905567]
[1722233099654,1.54222497,69950.0,69949.0,0.29905567]
[1722233099823,1.63532436,69950.0,69949.0,0.29905567]
[1722233100050,1.68532436,69950.0,69949.0,0.29905567]
[1722233100383,1.86405836,69950.0,69949.0,0.29905567]
[1722233100514,1.91505836,69950.0,69949.0,0.30605567]
[1722233100706,1.77195897,69950.0,69949.0,0.30605567]
[1722233100907,1.72195897,69950.0,69949.0,0.30605567]
[1722233101106,1.760067,69950.0,69949.0,0.30605567]
[1722233101381,1.7745242,69950.0,69949.0,0.30605567]
[1722233101757,1.7245242,69950.0,69949.0,0.30605567]
[1722233101957,1.91762359,69950.0,69949.0,0.30605567]
[1722233102161,1.86762359,69950.0,69949.0,0.30605567]
[1722233102336,1.91762359,69950.0,69949.0,0.32005567]
[1722233102575,1.86762359,69950.0,69949.0,0.32005567]
[1722233102965,1.89007388,69950.0,69949.0,0.32005567]
[1722233103349,1.88907388,69950.0,69949.0,0.31305567]
[1722233103550,1.91662359,69950.0,69949.0,0.29905567]
[1722233103724,1.92762359,69950.0,69949.0,0.30005567]
[1722233104143,1.92485456,69950.0,69949.0,0.30105567]
[1722233104376,1.93873483,69950.0,69949.0,0.30105567]
[1722233104547,1.88873483,69950.0,69949.0,0.30105567]
[1722233104972,1.93873483,69950.0,69949.0,0.30105567]
[1722233105421,2.31836883,69950.0,69949.0,0.13409567]
[1722233105598,2.26836883,69950.0,69949.0,0.13409567]
[1722233106028,1.494391,69932.0,69931.0,0.000924]
[1722233106240,1.76733455,69932.0,69931.0,0.286914]
[1722233106649,1.71733455,69932.0,69931.0,0.286914]
[1722233106987,1.76733455,69932.0,69931.0,0.286914]
[1722233107169,1.86043394,69932.0,69931.0,0.286914]
[1722233107571,2.32670595,69932.0,69931.0,0.229714]
[1722233107771,2.27660589,69932.0,69931.0,0.21473411]
[1722233107972,2.32660589,69932.0,69931.0,0.09162311]
[1722233108219,1.77146894,69928.0,69927.0,1e-06]
[1722233108418,0.70698394,69919.0,69897.0,0.0626]
[1722233108740,1.85222794,69919.0,69918.0,0.286974]
[1722233108892,2.18106394,69919.0,69918.0,0.286974]
[1722233109098,2.33196394,69919.0,69918.0,0.18309215]
[1722233109322,2.47506333,69919.0,69918.0,0.082839]
[1722233109522,2.33196394,69919.0,69918.0,0.082839]
[1722233110055,2.28196394,69919.0,69918.0,0.082839]
[1722233110184,0.801213,69894.0,69892.0,0.42926131]
[1722233110392,0.824213,69894.0,69892.0,0.42936137]
[1722233110595,0.824213,69894.0,69892.0,0.00010006]
[1722233110872,0.595295,69894.0,69893.0,0.00102406]
[1722233111063,0.595295,69894.0,69893.0,0.14862406]
[1722233111242,0.572295,69894.0,69893.0,0.14862406]
[1722233111642,0.573295,69894.0,69893.0,0.14862406]
[1722233112586,0.802213,69894.0,69893.0,0.14862406]
[1722233112712,0.801213,69894.0,69893.0,0.148524]
[1722233112915,0.801213,69894.0,69893.0,0.14862406]
[1722233113119,0.802213,69894.0,69893.0,0.434674]
[1722233113575,0.83413775,69894.0,69893.0,0.434674]
[1722233113792,0.83513774,69894.0,69893.0,0.352274]
[1722233116412,0.83513774,69894.0,69893.0,0.287074]
[1722233116609,0.83613774,69894.0,69893.0,0.287074]
[1722233117513,0.913243,69894.0,69893.0,0.287074]
[1722233117999,0.89125113,69894.0,69893.0,0.287074]
[1722233118238,1.28278734,69894.0,69893.0,0.287074]
[1722233118438,1.46360449,69894.0,69893.0,0.287074]
[1722233118636,1.37252993,69894.0,69893.0,0.287074]
[1722233119047,1.42252993,69894.0,69893.0,0.287074]
[1722233119270,1.37252993,69894.0,69893.0,0.287074]
[1722233119474,1.53647862,69894.0,69893.0,0.287074]
[1722233119682,1.57957801,69894.0,69893.0,0.287074]
[1722233119887,1.67957801,69894.0,69893.0,0.287074]
[1722233120090,1.51562932,69894.0,69893.0,0.287074]
[1722233120313,1.52967003,69894.0,69893.0,0.287074]
[1722233120780,1.45620694,69894.0,69893.0,0.287074]
[1722233120998,1.50620172,69894.0,69893.0,0.287074]
[1722233121359,1.38606983,69894.0,69893.0,0.287074]
[1722233121589,1.43606983,69894.0,69893.0,0.287074]
[1722233121817,1.36360449,69894.0,69893.0,0.287074]
[1722233122049,1.65822723,69894.0,69893.0,0.287074]
[1722233122271,1.56563026,69894.0,69893.0,0.287074]
[1722233122560,1.50670388,69894.0,69893.0,0.287074]
[1722233123264,1.48516033,69894.0,69893.0,0.287074]
[1722233123482,1.34206094,69894.0,69893.0,0.287074]
[1722233123955,1.156131,69894.0,69893.0,0.287074]
[1722233124186,1.242161,69894.0,69893.0,0.287074]